[Event "*** Titled Tuesday 3|2 Blitz"]
[Site "Chess.com"]
[Date "2016.06.07"]
[Round "8"]
[White "Fibrinogen"]
[Black "GeorgMeier"]
[Result "0-1"]
[WhiteElo "2287"]
[BlackElo "2701"]
[TimeControl "180+2"]
[EndTime "12:38:19 PDT"]
[Termination "GeorgMeier won by resignation"]

1. e4 {[%clk 0:03:01.8]} 1... e6 {[%clk 0:03:01.9]} 2. Nf3 {[%clk 0:03:03]} 2...
d5 {[%clk 0:03:03]} 3. exd5 {[%clk 0:03:03.9]} 3... exd5 {[%clk 0:03:04.1]} 4.
d4 {[%clk 0:03:05.6]} 4... Nf6 {[%clk 0:03:05.2]} 5. Bd3 {[%clk 0:03:06]} 5...
Bd6 {[%clk 0:03:06.4]} 6. O-O {[%clk 0:03:06.8]} 6... O-O {[%clk 0:03:07.7]} 7.
c3 {[%clk 0:03:07.3]} 7... c6 {[%clk 0:03:09.1]} 8. Re1 {[%clk 0:03:07.5]} 8...
Bg4 {[%clk 0:03:10.1]} 9. Nbd2 {[%clk 0:03:07.9]} 9... Nbd7 {[%clk 0:03:10.5]}
10. h3 {[%clk 0:03:09.1]} 10... Bh5 {[%clk 0:03:11.4]} 11. Nf1 {[%clk
0:03:08.3]} 11... Qc7 {[%clk 0:03:11.7]} 12. Be3 {[%clk 0:03:01.3]} 12... Rfe8
{[%clk 0:03:12.8]} 13. Be2 {[%clk 0:03:01.8]} 13... Ne4 {[%clk 0:03:12.2]} 14.
N3d2 {[%clk 0:03:01.2]} 14... Bg6 {[%clk 0:03:12.2]} 15. Nxe4 {[%clk 0:02:59.2]}
15... Rxe4 {[%clk 0:03:13.4]} 16. Bd3 {[%clk 0:02:57.3]} 16... Re6 {[%clk
0:03:14.5]} 17. Bxg6 {[%clk 0:02:57]} 17... hxg6 {[%clk 0:03:15.2]} 18. Bd2
{[%clk 0:02:56.4]} 18... Rae8 {[%clk 0:03:15.1]} 19. Qc2 {[%clk 0:02:52.5]}
19... Nf6 {[%clk 0:03:08.5]} 20. Rxe6 {[%clk 0:02:52.4]} 20... Rxe6 {[%clk
0:03:10]} 21. Re1 {[%clk 0:02:53.7]} 21... Rxe1 {[%clk 0:03:08.3]} 22. Bxe1
{[%clk 0:02:54]} 22... Qe7 {[%clk 0:03:09.8]} 23. Qd2 {[%clk 0:02:42.5]} 23...
Qe6 {[%clk 0:03:04.5]} 24. Qe3 {[%clk 0:02:37.2]} 24... Qf5 {[%clk 0:03:04.3]}
25. Qe2 {[%clk 0:02:35.7]} 25... Qb1 {[%clk 0:03:03.3]} 26. a3 {[%clk 0:02:36]}
26... Ne4 {[%clk 0:03:03.7]} 27. g3 {[%clk 0:02:29.5]} 27... Kf8 {[%clk
0:02:45.5]} 28. Kg2 {[%clk 0:02:28.6]} 28... Be7 {[%clk 0:02:45.1]} 29. f3
{[%clk 0:02:21.6]} 29... Nd6 {[%clk 0:02:46.3]} 30. Ne3 {[%clk 0:02:13.7]} 30...
Bg5 {[%clk 0:02:39.9]} 31. f4 {[%clk 0:01:32.9]} 31... Be7 {[%clk 0:02:40.6]}
32. Nd1 {[%clk 0:01:18.5]} 32... a5 {[%clk 0:02:26.5]} 33. Kf3 {[%clk
0:01:13.1]} 33... a4 {[%clk 0:02:27.4]} 34. Nf2 {[%clk 0:01:09.1]} 34... Nc4
{[%clk 0:02:25.2]} 35. Nd3 {[%clk 0:01:08.4]} 35... f6 {[%clk 0:02:26.6]} 36. g4
{[%clk 0:01:04.1]} 36... Bd6 {[%clk 0:02:21.9]} 37. h4 {[%clk 0:01:02.5]} 37...
Kf7 {[%clk 0:02:07.4]} 38. f5 {[%clk 0:01:01.1]} 38... gxf5 {[%clk 0:02:08.1]}
39. gxf5 {[%clk 0:01:03]} 39... Kf8 {[%clk 0:02:09.6]} 40. h5 {[%clk 0:00:58.7]}
40... Be7 {[%clk 0:02:10.1]} 41. Kg3 {[%clk 0:00:55]} 41... Nd6 {[%clk
0:02:10.5]} 42. Kg4 {[%clk 0:00:54.6]} 42... Ne4 {[%clk 0:01:25.8]} 43. Nf4
{[%clk 0:00:53.3]} 43... Bd6 {[%clk 0:01:22.5]} 44. Ng6+ {[%clk 0:00:53.2]}
44... Kf7 {[%clk 0:01:22.4]} 45. c4 {[%clk 0:00:49.6]} 45... Qc1 {[%clk
0:01:18.9]} 46. cxd5 {[%clk 0:00:46.1]} 46... Qg5+ {[%clk 0:01:18.6]} 47. Kh3
{[%clk 0:00:46.3]} 47... Qxf5+ {[%clk 0:01:19.6]} 48. Qg4 {[%clk 0:00:47]} 48...
Qf1+ {[%clk 0:01:12.2]} 49. Kh4 {[%clk 0:00:47.3]} 49... Qxe1+ {[%clk 0:01:13]}
0-1

[Event "*** Titled Tuesday 3|2 Blitz"]
[Site "Chess.com"]
[Date "2016.06.07"]
[Round "8"]
[White "Abrito99"]
[Black "StoreySniper"]
[Result "1-0"]
[WhiteElo "2396"]
[BlackElo "2316"]
[TimeControl "180+2"]
[EndTime "12:38:26 PDT"]
[Termination "Abrito99 won by resignation"]

1. e4 {[%clk 0:03:01.9]} 1... g6 {[%clk 0:03:01.9]} 2. d4 {[%clk 0:03:01]} 2...
Bg7 {[%clk 0:03:03.8]} 3. Nf3 {[%clk 0:03:00.3]} 3... c6 {[%clk 0:03:03.2]} 4.
h3 {[%clk 0:02:58]} 4... d5 {[%clk 0:03:04.6]} 5. e5 {[%clk 0:02:59.3]} 5... c5
{[%clk 0:02:59.3]} 6. c3 {[%clk 0:02:58.4]} 6... Nc6 {[%clk 0:03:00.8]} 7. Be2
{[%clk 0:02:52.4]} 7... Bf5 {[%clk 0:03:00.7]} 8. O-O {[%clk 0:02:50]} 8... Bxb1
{[%clk 0:03:01.3]} 9. Rxb1 {[%clk 0:02:50]} 9... e6 {[%clk 0:03:01.5]} 10. b4
{[%clk 0:02:48.4]} 10... c4 {[%clk 0:03:01.4]} 11. b5 {[%clk 0:02:44.8]} 11...
Na5 {[%clk 0:02:57.2]} 12. Ba3 {[%clk 0:02:26.9]} 12... b6 {[%clk 0:02:57.7]}
13. Nh2 {[%clk 0:02:26.7]} 13... Ne7 {[%clk 0:02:57.5]} 14. Ng4 {[%clk 0:02:24]}
14... Ng8 {[%clk 0:02:52.8]} 15. f4 {[%clk 0:02:14.1]} 15... h5 {[%clk
0:02:53.4]} 16. Ne3 {[%clk 0:02:04.5]} 16... Nh6 {[%clk 0:02:46.5]} 17. Qe1
{[%clk 0:01:55.4]} 17... Bf8 {[%clk 0:02:37.4]} 18. Bxf8 {[%clk 0:01:51.1]}
18... Kxf8 {[%clk 0:02:38.2]} 19. g4 {[%clk 0:01:50.3]} 19... hxg4 {[%clk
0:02:38.6]} 20. hxg4 {[%clk 0:01:51.3]} 20... a6 {[%clk 0:02:25.9]} 21. Kg2
{[%clk 0:01:35.5]} 21... axb5 {[%clk 0:02:25.8]} 22. Rh1 {[%clk 0:01:29.2]}
22... Ke7 {[%clk 0:02:23]} 23. Rxb5 {[%clk 0:01:26.2]} 23... Kd7 {[%clk
0:02:19.9]} 24. Qb1 {[%clk 0:01:25.3]} 24... Kc6 {[%clk 0:02:18.7]} 25. Qb4
{[%clk 0:00:56.5]} 25... Ra6 {[%clk 0:01:47.8]} 26. Bf3 {[%clk 0:00:55.1]} 26...
Kc7 {[%clk 0:01:41.3]} 27. Rb1 {[%clk 0:00:30.8]} 27... Nc6 {[%clk 0:01:37.3]}
28. Qb2 {[%clk 0:00:28.5]} 28... Nxg4 {[%clk 0:01:12.4]} 29. Nxg4 {[%clk
0:00:21]} 29... Qh4 {[%clk 0:01:06.7]} 30. Rxb6 {[%clk 0:00:21.3]} 30... Qh3+
{[%clk 0:01:02.9]} 31. Kf2 {[%clk 0:00:22.4]} 31... Rha8 {[%clk 0:00:35.7]} 32.
Rxa6 {[%clk 0:00:19.1]} 32... Qh4+ {[%clk 0:00:36.8]} 33. Ke3 {[%clk 0:00:19.3]}
33... Rb8 {[%clk 0:00:37.6]} 34. Rxc6+ {[%clk 0:00:19.4]} 34... Kxc6 {[%clk
0:00:38.4]} 35. Qxb8 {[%clk 0:00:20.1]} 1-0

[Event "*** Titled Tuesday 3|2 Blitz"]
[Site "Chess.com"]
[Date "2016.06.07"]
[Round "8"]
[White "Noukii"]
[Black "Rikikits"]
[Result "1-0"]
[WhiteElo "2653"]
[BlackElo "2443"]
[TimeControl "180+2"]
[EndTime "12:38:27 PDT"]
[Termination "Noukii won by resignation"]

1. d4 {[%clk 0:02:50.1]} 1... Nf6 {[%clk 0:03:00.6]} 2. c4 {[%clk 0:02:50.8]}
2... e6 {[%clk 0:03:00.6]} 3. Nc3 {[%clk 0:02:51.9]} 3... Bb4 {[%clk 0:02:59.3]}
4. Nf3 {[%clk 0:02:52.3]} 4... O-O {[%clk 0:02:58.3]} 5. Bg5 {[%clk 0:02:51.3]}
5... d6 {[%clk 0:02:52.7]} 6. e3 {[%clk 0:02:49.5]} 6... Nbd7 {[%clk 0:02:52.2]}
7. Bd3 {[%clk 0:02:50.6]} 7... Bxc3+ {[%clk 0:02:51.9]} 8. bxc3 {[%clk
0:02:51.6]} 8... e5 {[%clk 0:02:52.1]} 9. Nd2 {[%clk 0:02:53.2]} 9... Qe8 {[%clk
0:02:26.8]} 10. Qc2 {[%clk 0:02:47.4]} 10... h6 {[%clk 0:02:25.2]} 11. Bh4
{[%clk 0:02:48.5]} 11... b6 {[%clk 0:02:22.1]} 12. O-O {[%clk 0:02:39.6]} 12...
Bb7 {[%clk 0:02:22]} 13. f3 {[%clk 0:02:19.3]} 13... Qe7 {[%clk 0:02:06.1]} 14.
Rfe1 {[%clk 0:02:13.8]} 14... Rae8 {[%clk 0:02:05.8]} 15. e4 {[%clk 0:02:15.2]}
15... c5 {[%clk 0:02:02.6]} 16. d5 {[%clk 0:02:14.7]} 16... Kh8 {[%clk
0:02:02.6]} 17. Nf1 {[%clk 0:02:16]} 17... Bc8 {[%clk 0:01:54.6]} 18. Ne3 {[%clk
0:02:16.7]} 18... Rg8 {[%clk 0:01:54.5]} 19. a4 {[%clk 0:02:14]} 19... a5 {[%clk
0:01:39.1]} 20. Rab1 {[%clk 0:02:12.5]} 20... Qf8 {[%clk 0:01:40.7]} 21. Rf1
{[%clk 0:02:08.8]} 21... Nh5 {[%clk 0:01:40]} 22. Kh1 {[%clk 0:01:59.2]} 22...
Nf4 {[%clk 0:01:10]} 23. Rfe1 {[%clk 0:01:59]} 23... g5 {[%clk 0:00:49.2]} 24.
Bf2 {[%clk 0:01:58.5]} 24... h5 {[%clk 0:00:48.5]} 25. Bf1 {[%clk 0:01:57.4]}
25... g4 {[%clk 0:00:44.3]} 26. fxg4 {[%clk 0:01:55.5]} 26... hxg4 {[%clk
0:00:46.2]} 27. g3 {[%clk 0:01:55.3]} 27... Nf6 {[%clk 0:00:42.9]} 28. Rxb6
{[%clk 0:01:52.6]} 28... Rg6 {[%clk 0:00:33.8]} 29. Nf5 {[%clk 0:01:46.7]} 29...
Nh3 {[%clk 0:00:20.8]} 30. Bxh3 {[%clk 0:01:45.6]} 30... gxh3 {[%clk 0:00:22.7]}
31. Rxd6 {[%clk 0:01:25.8]} 31... Ng4 {[%clk 0:00:18.6]} 32. Bxc5 {[%clk
0:01:26.6]} 32... Bxf5 {[%clk 0:00:17.1]} 33. exf5 {[%clk 0:01:23.8]} 33... Rxd6
{[%clk 0:00:18.2]} 34. Qe4 {[%clk 0:01:17.6]} 34... Rc8 {[%clk 0:00:18.9]} 35.
Bxd6 {[%clk 0:01:06.7]} 35... Nf2+ {[%clk 0:00:19.8]} 36. Kg1 {[%clk 0:01:08.1]}
36... Nxe4 {[%clk 0:00:18.4]} 37. Bxf8 {[%clk 0:01:08.5]} 37... Ng5 {[%clk
0:00:17.5]} 38. Be7 {[%clk 0:01:02.7]} 38... Nf3+ {[%clk 0:00:18]} 39. Kf2
{[%clk 0:01:04.3]} 39... Nxe1 {[%clk 0:00:19.7]} 40. Kxe1 {[%clk 0:01:05.9]} 1-0

[Event "*** Titled Tuesday 3|2 Blitz"]
[Site "Chess.com"]
[Date "2016.06.07"]
[Round "8"]
[White "kikydu96"]
[Black "AleksandrKholin"]
[Result "1-0"]
[WhiteElo "2342"]
[BlackElo "2115"]
[TimeControl "180+2"]
[EndTime "12:38:30 PDT"]
[Termination "kikydu96 won by resignation"]

1. e4 {[%clk 0:03:00.2]} 1... c5 {[%clk 0:02:59.6]} 2. Nf3 {[%clk 0:03:01.2]}
2... d6 {[%clk 0:03:00.2]} 3. d4 {[%clk 0:03:02.8]} 3... cxd4 {[%clk 0:03:01.6]}
4. Nxd4 {[%clk 0:03:04.7]} 4... Nf6 {[%clk 0:03:03]} 5. Nc3 {[%clk 0:03:06.3]}
5... a6 {[%clk 0:03:04.4]} 6. h3 {[%clk 0:03:07.2]} 6... e5 {[%clk 0:03:05.3]}
7. Nde2 {[%clk 0:03:08.3]} 7... Be7 {[%clk 0:03:06.6]} 8. g4 {[%clk 0:03:09.5]}
8... O-O {[%clk 0:03:05.2]} 9. Bg2 {[%clk 0:03:08.6]} 9... b5 {[%clk 0:03:02.2]}
10. O-O {[%clk 0:03:09.4]} 10... Bb7 {[%clk 0:03:02.9]} 11. Be3 {[%clk 0:03:11]}
11... Nbd7 {[%clk 0:03:02.2]} 12. Ng3 {[%clk 0:03:10.5]} 12... Nb6 {[%clk
0:03:02.8]} 13. b3 {[%clk 0:03:09.5]} 13... Rc8 {[%clk 0:03:02.5]} 14. Qd2
{[%clk 0:03:00.3]} 14... b4 {[%clk 0:02:57.5]} 15. Nd5 {[%clk 0:02:59.1]} 15...
Nfxd5 {[%clk 0:02:40]} 16. exd5 {[%clk 0:02:58.4]} 16... a5 {[%clk 0:02:32]} 17.
Nf5 {[%clk 0:02:58.5]} 17... Nd7 {[%clk 0:02:12.9]} 18. a3 {[%clk 0:02:54.4]}
18... Rc3 {[%clk 0:01:35.5]} 19. axb4 {[%clk 0:02:53.2]} 19... axb4 {[%clk
0:01:36.4]} 20. Ra7 {[%clk 0:02:53.9]} 20... Bc8 {[%clk 0:01:31.2]} 21. Ra8
{[%clk 0:02:45.8]} 21... Re8 {[%clk 0:01:29.8]} 22. Rfa1 {[%clk 0:02:43]} 22...
Bf8 {[%clk 0:01:27.4]} 23. R1a7 {[%clk 0:02:41.4]} 23... Nb6 {[%clk 0:01:25.4]}
24. Rb8 {[%clk 0:02:37]} 24... Nd7 {[%clk 0:01:24.3]} 25. Rxb4 {[%clk
0:02:31.5]} 25... Rc7 {[%clk 0:01:24]} 26. Ra8 {[%clk 0:02:31]} 26... Nc5 {[%clk
0:01:22.7]} 27. Rbb8 {[%clk 0:02:27.4]} 27... Qd7 {[%clk 0:01:21.6]} 28. b4
{[%clk 0:02:25.9]} 28... Na6 {[%clk 0:01:20.1]} 29. Rxc8 {[%clk 0:02:26.2]}
29... Rcxc8 {[%clk 0:01:17]} 30. Rxa6 {[%clk 0:02:27.2]} 30... Qb7 {[%clk
0:01:07.8]} 31. Rc6 {[%clk 0:02:24.9]} 31... Red8 {[%clk 0:01:05.1]} 32. c4
{[%clk 0:02:23.8]} 32... Ra8 {[%clk 0:01:02.6]} 33. Kh2 {[%clk 0:02:22.5]} 33...
Ra1 {[%clk 0:01:02.5]} 34. b5 {[%clk 0:02:23.2]} 34... Qa8 {[%clk 0:00:57.4]}
35. b6 {[%clk 0:02:23.8]} 35... Qa4 {[%clk 0:00:58.2]} 36. b7 {[%clk 0:02:15.9]}
36... Rb1 {[%clk 0:00:59.2]} 37. Rc7 {[%clk 0:02:15.6]} 37... Rb8 {[%clk
0:00:57.7]} 38. Nxd6 {[%clk 0:02:11.2]} 38... Qa6 {[%clk 0:00:24.6]} 39. c5
{[%clk 0:02:08.4]} 39... Bxd6 {[%clk 0:00:23]} 40. Rc8+ {[%clk 0:02:08.3]} 40...
Rxc8 {[%clk 0:00:23.3]} 41. bxc8=Q+ {[%clk 0:02:07.5]} 41... Qxc8 {[%clk
0:00:24.9]} 42. cxd6 {[%clk 0:02:09.2]} 42... h5 {[%clk 0:00:22.8]} 43. gxh5
{[%clk 0:02:01.6]} 43... f5 {[%clk 0:00:22.4]} 44. Qa2 {[%clk 0:01:52.9]} 44...
Rb8 {[%clk 0:00:17.1]} 45. Qa7 {[%clk 0:01:53]} 45... f4 {[%clk 0:00:17.4]} 46.
d7 {[%clk 0:01:54.3]} 46... Qd8 {[%clk 0:00:17.6]} 47. Bc5 {[%clk 0:01:53.6]}
47... Ra8 {[%clk 0:00:18.6]} 48. Qb7 {[%clk 0:01:51.3]} 48... Rb8 {[%clk
0:00:19.4]} 49. Qc6 {[%clk 0:01:52.3]} 49... Kh7 {[%clk 0:00:14.7]} 50. Be4+
{[%clk 0:01:52.7]} 50... Kh8 {[%clk 0:00:15.6]} 51. Qg6 {[%clk 0:01:52.6]} 1-0

[Event "*** Titled Tuesday 3|2 Blitz"]
[Site "Chess.com"]
[Date "2016.06.07"]
[Round "8"]
[White "kpio91"]
[Black "platy3"]
[Result "0-1"]
[WhiteElo "2540"]
[BlackElo "2684"]
[TimeControl "180+2"]
[EndTime "12:38:40 PDT"]
[Termination "platy3 won by resignation"]

1. e4 {[%clk 0:03:01.9]} 1... c5 {[%clk 0:03:01.1]} 2. Nf3 {[%clk 0:03:02.5]}
2... e6 {[%clk 0:03:01.1]} 3. d4 {[%clk 0:03:02.6]} 3... cxd4 {[%clk 0:03:02.4]}
4. Nxd4 {[%clk 0:03:03.8]} 4... a6 {[%clk 0:03:03.9]} 5. c4 {[%clk 0:03:03.8]}
5... Nf6 {[%clk 0:03:03.9]} 6. Nc3 {[%clk 0:03:04.6]} 6... Qc7 {[%clk
0:03:05.5]} 7. a3 {[%clk 0:03:02.6]} 7... Be7 {[%clk 0:03:06.3]} 8. Be2 {[%clk
0:03:02.5]} 8... O-O {[%clk 0:03:07.9]} 9. O-O {[%clk 0:03:03.6]} 9... b6 {[%clk
0:03:09.5]} 10. Be3 {[%clk 0:03:00.5]} 10... Bb7 {[%clk 0:03:10.7]} 11. f3
{[%clk 0:03:01.7]} 11... d6 {[%clk 0:03:12.1]} 12. Rc1 {[%clk 0:03:02]} 12...
Nbd7 {[%clk 0:03:13.5]} 13. b4 {[%clk 0:03:02]} 13... Rac8 {[%clk 0:03:14.8]}
14. Qe1 {[%clk 0:02:57.3]} 14... Qb8 {[%clk 0:03:15]} 15. Qf2 {[%clk 0:02:58.2]}
15... Bd8 {[%clk 0:03:15.5]} 16. Nb3 {[%clk 0:02:50.7]} 16... Bc7 {[%clk
0:03:15.8]} 17. g3 {[%clk 0:02:50.4]} 17... Rfe8 {[%clk 0:03:00.3]} 18. Rfd1
{[%clk 0:02:49.5]} 18... Qa8 {[%clk 0:02:59.5]} 19. Bd4 {[%clk 0:02:37.5]} 19...
Bc6 {[%clk 0:02:46.7]} 20. a4 {[%clk 0:02:31.6]} 20... Bb7 {[%clk 0:02:47.1]}
21. Ra1 {[%clk 0:02:26.3]} 21... Qb8 {[%clk 0:02:43.7]} 22. a5 {[%clk
0:02:25.7]} 22... bxa5 {[%clk 0:02:43.6]} 23. Nxa5 {[%clk 0:02:25.3]} 23... Ba8
{[%clk 0:02:39.3]} 24. Rdb1 {[%clk 0:02:26.1]} 24... Bb6 {[%clk 0:02:25.6]} 25.
c5 {[%clk 0:02:02.9]} 25... Bxa5 {[%clk 0:02:25.7]} 26. bxa5 {[%clk 0:02:03.8]}
26... Qc7 {[%clk 0:02:26]} 27. cxd6 {[%clk 0:01:49.6]} 27... Qxd6 {[%clk
0:02:26.1]} 28. Na4 {[%clk 0:01:51.3]} 28... Rc2 {[%clk 0:02:18.3]} 29. Rb2
{[%clk 0:01:23.7]} 29... Rec8 {[%clk 0:01:55.1]} 30. Nb6 {[%clk 0:01:18.7]}
30... Rc1+ {[%clk 0:01:36.4]} 31. Bf1 {[%clk 0:00:50.3]} 31... Rxa1 {[%clk
0:01:03.6]} 32. Nxc8 {[%clk 0:00:49.7]} 32... Qa3 {[%clk 0:00:59.8]} 33. Rc2
{[%clk 0:00:33.6]} 33... Rd1 {[%clk 0:00:58.3]} 34. Rd2 {[%clk 0:00:25]} 34...
Rxd2 {[%clk 0:00:55.4]} 35. Qxd2 {[%clk 0:00:26]} 35... Qxf3 {[%clk 0:00:57.1]}
36. Bxf6 {[%clk 0:00:26.7]} 36... gxf6 {[%clk 0:00:48.6]} 37. Qxd7 {[%clk
0:00:26.2]} 37... Qe3+ {[%clk 0:00:50]} 38. Kg2 {[%clk 0:00:05.6]} 38... Bxe4+
{[%clk 0:00:51.9]} 39. Kh3 {[%clk 0:00:06.6]} 39... Qh6+ {[%clk 0:00:52.8]} 0-1

[Event "*** Titled Tuesday 3|2 Blitz"]
[Site "Chess.com"]
[Date "2016.06.07"]
[Round "8"]
[White "ItalianMachine"]
[Black "dabee"]
[Result "0-1"]
[WhiteElo "2322"]
[BlackElo "2414"]
[TimeControl "180+2"]
[EndTime "12:38:44 PDT"]
[Termination "dabee won by resignation"]

1. e4 {[%clk 0:03:01.9]} 1... e5 {[%clk 0:03:00.8]} 2. Nf3 {[%clk 0:03:01]} 2...
Nc6 {[%clk 0:03:01.7]} 3. Bb5 {[%clk 0:03:00.8]} 3... a6 {[%clk 0:03:01.4]} 4.
Ba4 {[%clk 0:03:00.8]} 4... Nf6 {[%clk 0:03:02.3]} 5. d3 {[%clk 0:03:01.9]} 5...
d6 {[%clk 0:03:02.1]} 6. O-O {[%clk 0:03:02.6]} 6... g6 {[%clk 0:03:02.9]} 7. h3
{[%clk 0:03:04]} 7... Bg7 {[%clk 0:03:03.6]} 8. c3 {[%clk 0:03:05.4]} 8... O-O
{[%clk 0:03:03.4]} 9. Re1 {[%clk 0:03:06.6]} 9... Bd7 {[%clk 0:03:02.8]} 10. Bc2
{[%clk 0:03:03.6]} 10... h6 {[%clk 0:03:01.7]} 11. d4 {[%clk 0:03:03.3]} 11...
Re8 {[%clk 0:02:51.4]} 12. Nbd2 {[%clk 0:03:00.8]} 12... Nh5 {[%clk 0:02:47.7]}
13. Nf1 {[%clk 0:02:57.5]} 13... Qf6 {[%clk 0:02:46.7]} 14. dxe5 {[%clk
0:02:49.9]} 14... Nxe5 {[%clk 0:02:43.6]} 15. Nxe5 {[%clk 0:02:50.2]} 15... Rxe5
{[%clk 0:02:27]} 16. Be3 {[%clk 0:02:38.6]} 16... Re7 {[%clk 0:02:09]} 17. Bd4
{[%clk 0:02:24.1]} 17... Qg5 {[%clk 0:02:07]} 18. Be3 {[%clk 0:02:10.1]} 18...
Nf4 {[%clk 0:02:01.4]} 19. Qf3 {[%clk 0:02:09.6]} 19... Be5 {[%clk 0:01:54.3]}
20. Kh1 {[%clk 0:02:04.3]} 20... Qh4 {[%clk 0:01:45.8]} 21. Nh2 {[%clk
0:01:58.5]} 21... Ne6 {[%clk 0:01:39.3]} 22. Ng4 {[%clk 0:01:13.7]} 22... Ng5
{[%clk 0:01:37.3]} 23. Bxg5 {[%clk 0:00:19.1]} 23... hxg5 {[%clk 0:01:20]} 24.
Nf6+ {[%clk 0:00:16.5]} 24... Bxf6 {[%clk 0:01:18.1]} 25. Qxf6 {[%clk
0:00:18.4]} 25... Re6 {[%clk 0:01:15.6]} 26. Qd4 {[%clk 0:00:19]} 26... Bc6
{[%clk 0:01:00.1]} 27. Re3 {[%clk 0:00:20]} 27... g4 {[%clk 0:00:55.2]} 28. Rf1
{[%clk 0:00:17.9]} 28... Rae8 {[%clk 0:00:52.1]} 29. Rg3 {[%clk 0:00:19]} 29...
Bxe4 {[%clk 0:00:43.3]} 30. Bb3 {[%clk 0:00:20.5]} 30... gxh3 {[%clk 0:00:37.5]}
31. Kg1 {[%clk 0:00:15.5]} 31... hxg2 {[%clk 0:00:37.7]} 32. Rxg2 {[%clk
0:00:11.9]} 32... c5 {[%clk 0:00:26.6]} 33. Qe3 {[%clk 0:00:10.5]} 33... Bxg2
{[%clk 0:00:26.3]} 34. Bxe6 {[%clk 0:00:11.3]} 34... Rxe6 {[%clk 0:00:26.9]} 0-1

[Event "*** Titled Tuesday 3|2 Blitz"]
[Site "Chess.com"]
[Date "2016.06.07"]
[Round "8"]
[White "Iball95"]
[Black "PowerThinking2650"]
[Result "1-0"]
[WhiteElo "2456"]
[BlackElo "2219"]
[TimeControl "180+2"]
[EndTime "12:38:46 PDT"]
[Termination "Iball95 won by resignation"]

1. c4 {[%clk 0:02:58.5]} 1... Nf6 {[%clk 0:03:01.3]} 2. Nf3 {[%clk 0:02:58.5]}
2... g6 {[%clk 0:03:02.3]} 3. g3 {[%clk 0:02:58.9]} 3... Bg7 {[%clk 0:03:03.1]}
4. Bg2 {[%clk 0:03:00.5]} 4... O-O {[%clk 0:03:04.5]} 5. O-O {[%clk 0:03:02.1]}
5... d6 {[%clk 0:03:03.5]} 6. Nc3 {[%clk 0:03:00.7]} 6... e5 {[%clk 0:03:02.7]}
7. d4 {[%clk 0:03:02.2]} 7... exd4 {[%clk 0:03:02]} 8. Nxd4 {[%clk 0:03:03]}
8... Nbd7 {[%clk 0:03:02.9]} 9. b3 {[%clk 0:03:03.3]} 9... Re8 {[%clk
0:03:03.8]} 10. Bb2 {[%clk 0:03:04.7]} 10... Nc5 {[%clk 0:03:03]} 11. Qc2 {[%clk
0:03:01.7]} 11... h5 {[%clk 0:02:43.1]} 12. h3 {[%clk 0:02:51.1]} 12... h4
{[%clk 0:02:43.2]} 13. g4 {[%clk 0:02:52.2]} 13... a5 {[%clk 0:02:36.9]} 14.
Rad1 {[%clk 0:02:50.1]} 14... c6 {[%clk 0:02:22.2]} 15. Rfe1 {[%clk 0:02:31.4]}
15... Qb6 {[%clk 0:02:05]} 16. e3 {[%clk 0:02:31.8]} 16... a4 {[%clk 0:02:05.2]}
17. Nxa4 {[%clk 0:02:17.6]} 17... Nxa4 {[%clk 0:02:05.8]} 18. bxa4 {[%clk
0:02:19.5]} 18... Qb4 {[%clk 0:02:04.5]} 19. Nb3 {[%clk 0:02:08.1]} 19... Rxa4
{[%clk 0:02:01]} 20. a3 {[%clk 0:02:01.4]} 20... Qxc4 {[%clk 0:01:57.8]} 21.
Qxc4 {[%clk 0:02:01.7]} 21... Rxc4 {[%clk 0:01:58.4]} 22. Bxf6 {[%clk
0:01:23.2]} 22... Bxf6 {[%clk 0:01:57.7]} 23. Rxd6 {[%clk 0:01:24.7]} 23... Be7
{[%clk 0:01:57.2]} 24. Rd3 {[%clk 0:01:25.4]} 24... Bxa3 {[%clk 0:01:50]} 25.
Na5 {[%clk 0:01:24.1]} 25... Ra4 {[%clk 0:01:43.6]} 26. Nxc6 {[%clk 0:01:20]}
26... bxc6 {[%clk 0:01:36.4]} 27. Bxc6 {[%clk 0:01:20.4]} 27... Ba6 {[%clk
0:01:09.6]} 28. Bxa4 {[%clk 0:01:10.6]} 28... Bxd3 {[%clk 0:01:06.7]} 29. Bxe8
{[%clk 0:01:11.9]} 29... f5 {[%clk 0:01:02.1]} 30. Bc6 {[%clk 0:01:04.2]} 30...
Kg7 {[%clk 0:00:54.7]} 31. Rd1 {[%clk 0:01:02.8]} 31... Be2 {[%clk 0:00:53.1]}
32. Rd7+ {[%clk 0:01:00.4]} 32... Kf6 {[%clk 0:00:53.1]} 33. gxf5 {[%clk
0:00:57.5]} 33... gxf5 {[%clk 0:00:45.2]} 34. Kg2 {[%clk 0:00:58.3]} 34... Be7
{[%clk 0:00:42.9]} 35. Bf3 {[%clk 0:00:58.5]} 35... Bc4 {[%clk 0:00:41.7]} 36.
Rc7 {[%clk 0:00:59.2]} 36... Be6 {[%clk 0:00:41.8]} 37. Ra7 {[%clk 0:00:58.6]}
37... Bd6 {[%clk 0:00:41.7]} 38. Ra6 {[%clk 0:00:59.4]} 38... Ke5 {[%clk
0:00:40.8]} 39. Ra5+ {[%clk 0:00:57.2]} 39... Kf6 {[%clk 0:00:41.4]} 40. Ra4
{[%clk 0:00:58]} 40... f4 {[%clk 0:00:21.2]} 41. exf4 {[%clk 0:00:59.9]} 41...
Be7 {[%clk 0:00:19.2]} 42. Ra6 {[%clk 0:00:58.6]} 42... Kf7 {[%clk 0:00:18]} 43.
Bh5+ {[%clk 0:00:59.5]} 1-0